[Event "Titled Tuesday Blitz April 4 Early 2023"]
[White "Sokolovsky, Yahli"]
[Black "Koridze, Lile"]
[WhiteFideId "2820242"]
[BlackFideId "13612514"]
[WhiteElo "2316"]
[BlackElo "2047"]
[Result "1-0"]
[Round "06"]
[TimeControl "180+2"]
[Date "2023.04.04"]
[WhiteClock "0:00:39"]
[BlackClock "0:00:08"]

1. b3 {[%clk 0:03:00]}  Nf6 {[%clk 0:02:57]} 2. Bb2 {[%clk 0:02:59]}  g6 {[%clk 0:02:58]} 3. e3 {[%clk 0:03:00]}  Bg7 {[%clk 0:02:58]} 4. Nf3 {[%clk 0:03:00]}  O-O {[%clk 0:02:59]} 5. d4 {[%clk 0:03:01]}  b6 {[%clk 0:02:58]} 6. Bd3 {[%clk 0:03:00]}  Bb7 {[%clk 0:02:58]} 7. O-O {[%clk 0:03:01]}  d6 {[%clk 0:02:55]} 8. c4 {[%clk 0:03:01]}  Nbd7 {[%clk 0:02:55]} 9. Nc3 {[%clk 0:03:00]}  e5 {[%clk 0:02:53]} 10. d5 {[%clk 0:02:59]}  Nc5 {[%clk 0:02:40]} 11. Bc2 {[%clk 0:03:00]}  a5 {[%clk 0:02:35]} 12. a3 {[%clk 0:02:56]}  Ne8 {[%clk 0:02:27]} 13. Qd2 {[%clk 0:02:52]}  f5 {[%clk 0:02:27]} 14. b4 {[%clk 0:02:52]}  Nd7 {[%clk 0:02:27]} 15. e4 {[%clk 0:02:47]}  fxe4 {[%clk 0:02:25]} 16. Ng5 {[%clk 0:02:26]}  Qe7 {[%clk 0:02:15]} 17. Ne6 {[%clk 0:02:20]}  Rf7 {[%clk 0:02:16]} 18. Nxe4 {[%clk 0:02:17]}  Nf8 {[%clk 0:02:10]} 19. N4g5 {[%clk 0:01:44]}  Rf6 {[%clk 0:02:07]} 20. f4 {[%clk 0:01:38]}  Nxe6 {[%clk 0:02:05]} 21. Nxe6 {[%clk 0:01:39]}  Rf7 {[%clk 0:02:02]} 22. f5 {[%clk 0:01:26]}  gxf5 {[%clk 0:01:59]} 23. Bxf5 {[%clk 0:01:26]}  Nf6 {[%clk 0:01:59]} 24. Qg5 {[%clk 0:01:20]}  Kh8 {[%clk 0:01:54]} 25. Qh4 {[%clk 0:01:06]}  Bf8 {[%clk 0:00:52]} 26. Bc1 {[%clk 0:00:45]}  Nxd5 {[%clk 0:00:43]} 27. Bg5 {[%clk 0:00:45]}  Nf6 {[%clk 0:00:43]} 28. Bxh7 {[%clk 0:00:42]}  Rxh7 {[%clk 0:00:07]} 29. Bxf6+ {[%clk 0:00:41]}  Bg7 {[%clk 0:00:08]} 30. Bxe7 {[%clk 0:00:39]} 1-0


[Site "https://www.chess.com"]

[Event "Titled Tuesday Blitz April 4 Early 2023"]
[White "TheKnightOfBosnia"]
[Black "Srinath, Rao S.V."]
[BlackFideId "5028876"]
[WhiteElo "2487"]
[BlackElo "2196"]
[Result "1-0"]
[Round "06"]
[TimeControl "180+2"]
[Date "2023.04.04"]
[WhiteClock "0:00:09"]
[BlackClock "0:00:02"]

1. e4 {[%clk 0:03:00]}  c6 {[%clk 0:02:58]} 2. d4 {[%clk 0:03:00]}  d5 {[%clk 0:02:59]} 3. Nd2 {[%clk 0:03:01]}  dxe4 {[%clk 0:02:56]} 4. Nxe4 {[%clk 0:03:02]}  Bf5 {[%clk 0:02:56]} 5. Ng3 {[%clk 0:03:02]}  Bg6 {[%clk 0:02:57]} 6. h4 {[%clk 0:03:02]}  h6 {[%clk 0:02:56]} 7. Nh3 {[%clk 0:03:02]}  e6 {[%clk 0:02:52]} 8. Nf4 {[%clk 0:03:02]}  Bh7 {[%clk 0:02:52]} 9. Bc4 {[%clk 0:03:02]}  Nf6 {[%clk 0:02:48]} 10. Ngh5 {[%clk 0:03:01]}  Nbd7 {[%clk 0:02:45]} 11. c3 {[%clk 0:03:01]}  Nxh5 {[%clk 0:02:31]} 12. Nxh5 {[%clk 0:03:02]}  Nf6 {[%clk 0:02:31]} 13. Bf4 {[%clk 0:03:02]}  Nd5 {[%clk 0:01:57]} 14. Be5 {[%clk 0:02:49]}  f6 {[%clk 0:01:51]} 15. Bg3 {[%clk 0:02:42]}  Qd7 {[%clk 0:01:42]} 16. Bd3 {[%clk 0:02:29]}  Bxd3 {[%clk 0:01:31]} 17. Qxd3 {[%clk 0:02:30]}  Qf7 {[%clk 0:01:32]} 18. Nf4 {[%clk 0:02:24]}  O-O-O {[%clk 0:01:22]} 19. Ng6 {[%clk 0:02:12]}  Rg8 {[%clk 0:01:16]} 20. Nxf8 {[%clk 0:02:10]}  Rgxf8 {[%clk 0:01:14]} 21. O-O-O {[%clk 0:02:10]}  h5 {[%clk 0:01:00]} 22. c4 {[%clk 0:01:58]}  Nb6 {[%clk 0:00:57]} 23. Qa3 {[%clk 0:01:40]}  e5 {[%clk 0:00:34]} 24. Qxa7 {[%clk 0:01:29]}  Qxc4+ {[%clk 0:00:33]} 25. Kb1 {[%clk 0:01:29]}  Nd7 {[%clk 0:00:19]} 26. Qa8+ {[%clk 0:01:28]}  Kc7 {[%clk 0:00:19]} 27. Qa5+ {[%clk 0:01:22]}  Kc8 {[%clk 0:00:18]} 28. dxe5 {[%clk 0:01:17]}  Qe4+ {[%clk 0:00:18]} 29. Ka1 {[%clk 0:01:17]}  Nxe5 {[%clk 0:00:18]} 30. f3 {[%clk 0:00:57]}  Qc2 {[%clk 0:00:13]} 31. Rc1 {[%clk 0:00:55]}  Qxg2 {[%clk 0:00:13]} 32. Bf4 {[%clk 0:00:41]}  Qxf3 {[%clk 0:00:11]} 33. Bxe5 {[%clk 0:00:38]}  fxe5 {[%clk 0:00:11]} 34. Qa8+ {[%clk 0:00:36]}  Kc7 {[%clk 0:00:10]} 35. Qa5+ {[%clk 0:00:36]}  Kc8 {[%clk 0:00:10]} 36. Qa8+ {[%clk 0:00:36]}  Kc7 {[%clk 0:00:10]} 37. Qa5+ {[%clk 0:00:37]}  Kb8 {[%clk 0:00:10]} 38. Qxe5+ {[%clk 0:00:36]}  Kc8 {[%clk 0:00:09]} 39. Qxg7 {[%clk 0:00:32]}  Rf7 {[%clk 0:00:07]} 40. Qe5 {[%clk 0:00:29]}  Rfd7 {[%clk 0:00:07]} 41. a3 {[%clk 0:00:27]}  Rd2 {[%clk 0:00:05]} 42. Rhf1 {[%clk 0:00:23]}  Qb3 {[%clk 0:00:04]} 43. Rf6 {[%clk 0:00:12]}  R2d3 {[%clk 0:00:01]} 44. Rfxc6+ {[%clk 0:00:10]}  bxc6 {[%clk 0:00:02]} 45. Rxc6+ {[%clk 0:00:10]}  Kd7 {[%clk 0:00:02]} 46. Rc7# {[%clk 0:00:09]} 1-0


[Site "https://www.chess.com"]

[Event "Titled Tuesday Blitz April 4 Early 2023"]
[White "Jakubowski, Krzysztof"]
[Black "Santos Flores, Alberto"]
[WhiteFideId "1112848"]
[BlackFideId "3601234"]
[WhiteElo "2359"]
[BlackElo "2235"]
[Result "1-0"]
[Round "06"]
[TimeControl "180+2"]
[Date "2023.04.04"]
[WhiteClock "0:00:05"]
[BlackClock "0:00:09"]

1. e4 {[%clk 0:03:00]}  c5 {[%clk 0:02:59]} 2. Nf3 {[%clk 0:03:00]}  Nc6 {[%clk 0:02:57]} 3. d4 {[%clk 0:03:00]}  cxd4 {[%clk 0:02:58]} 4. Nxd4 {[%clk 0:03:00]}  g6 {[%clk 0:02:58]} 5. c4 {[%clk 0:02:56]}  Nf6 {[%clk 0:02:57]} 6. Nc3 {[%clk 0:02:55]}  d6 {[%clk 0:02:57]} 7. Be2 {[%clk 0:02:53]}  Nxd4 {[%clk 0:02:56]} 8. Qxd4 {[%clk 0:02:52]}  Bg7 {[%clk 0:02:57]} 9. O-O {[%clk 0:02:50]}  O-O {[%clk 0:02:56]} 10. Qd3 {[%clk 0:02:46]}  Be6 {[%clk 0:02:56]} 11. Bd2 {[%clk 0:02:38]}  a6 {[%clk 0:02:50]} 12. b3 {[%clk 0:02:28]}  Rb8 {[%clk 0:02:30]} 13. a4 {[%clk 0:02:20]}  Nd7 {[%clk 0:02:25]} 14. Rab1 {[%clk 0:02:19]}  Nc5 {[%clk 0:02:17]} 15. Qe3 {[%clk 0:02:18]}  a5 {[%clk 0:02:17]} 16. Kh1 {[%clk 0:02:02]}  Qb6 {[%clk 0:02:15]} 17. Nb5 {[%clk 0:01:50]}  Bd7 {[%clk 0:02:09]} 18. f4 {[%clk 0:01:44]}  Bxb5 {[%clk 0:02:08]} 19. axb5 {[%clk 0:01:43]}  Qc7 {[%clk 0:02:03]} 20. f5 {[%clk 0:01:37]}  Nd7 {[%clk 0:01:57]} 21. Qh3 {[%clk 0:01:15]}  Ra8 {[%clk 0:01:17]} 22. Rf4 {[%clk 0:01:02]}  a4 {[%clk 0:01:13]} 23. bxa4 {[%clk 0:01:02]}  Rxa4 {[%clk 0:01:13]} 24. Rh4 {[%clk 0:01:02]}  Ra2 {[%clk 0:01:07]} 25. Rxh7 {[%clk 0:00:57]}  Rxd2 {[%clk 0:01:01]} 26. Rxg7+ {[%clk 0:00:57]}  Kxg7 {[%clk 0:01:02]} 27. Qc3+ {[%clk 0:00:57]}  Ne5 {[%clk 0:01:02]} 28. Qxd2 {[%clk 0:00:57]}  Ra8 {[%clk 0:00:56]} 29. Rf1 {[%clk 0:00:52]}  Qc5 {[%clk 0:00:53]} 30. fxg6 {[%clk 0:00:49]}  fxg6 {[%clk 0:00:52]} 31. Qg5 {[%clk 0:00:45]}  Qc7 {[%clk 0:00:45]} 32. h3 {[%clk 0:00:36]}  Ra2 {[%clk 0:00:37]} 33. Bg4 {[%clk 0:00:30]}  Nxg4 {[%clk 0:00:29]} 34. hxg4 {[%clk 0:00:25]}  Rc2 {[%clk 0:00:19]} 35. Qd5 {[%clk 0:00:23]}  Rxc4 {[%clk 0:00:17]} 36. Rf7+ {[%clk 0:00:21]}  Kh8 {[%clk 0:00:17]} 37. Rf8+ {[%clk 0:00:14]}  Kg7 {[%clk 0:00:17]} 38. Qf7+ {[%clk 0:00:13]}  Kh6 {[%clk 0:00:17]} 39. g5+ {[%clk 0:00:05]}  Kh5 {[%clk 0:00:10]} 40. Qf3+ {[%clk 0:00:05]}  Kxg5 {[%clk 0:00:09]} 41. Qf4+ {[%clk 0:00:05]} 1-0


[Site "https://www.chess.com"]

[Event "Titled Tuesday Blitz April 4 Early 2023"]
[White "Chernomordik, Pavel"]
[Black "Buksa, Nataliya"]
[WhiteFideId "2804530"]
[BlackFideId "14123622"]
[WhiteElo "2193"]
[BlackElo "2316"]
[Result "0-1"]
[Round "06"]
[TimeControl "180+2"]
[Date "2023.04.04"]
[WhiteClock "0:00:09"]
[BlackClock "0:00:21"]

1. e4 {[%clk 0:03:00]}  c5 {[%clk 0:02:59]} 2. Nc3 {[%clk 0:03:00]}  Nc6 {[%clk 0:02:58]} 3. Bb5 {[%clk 0:02:59]}  Nd4 {[%clk 0:02:58]} 4. Bc4 {[%clk 0:02:58]}  e6 {[%clk 0:02:58]} 5. Nge2 {[%clk 0:02:58]}  Ne7 {[%clk 0:02:51]} 6. O-O {[%clk 0:02:51]}  Nec6 {[%clk 0:02:51]} 7. d3 {[%clk 0:02:49]}  Be7 {[%clk 0:02:52]} 8. a3 {[%clk 0:02:42]}  a6 {[%clk 0:02:52]} 9. Ng3 {[%clk 0:02:36]}  b5 {[%clk 0:02:52]} 10. Ba2 {[%clk 0:02:35]}  Bb7 {[%clk 0:02:53]} 11. Nce2 {[%clk 0:02:34]}  Qc7 {[%clk 0:02:52]} 12. c3 {[%clk 0:02:31]}  Nxe2+ {[%clk 0:02:52]} 13. Qxe2 {[%clk 0:02:26]}  O-O-O {[%clk 0:02:48]} 14. b4 {[%clk 0:02:16]}  cxb4 {[%clk 0:02:35]} 15. axb4 {[%clk 0:02:13]}  h5 {[%clk 0:02:35]} 16. h3 {[%clk 0:01:56]}  h4 {[%clk 0:02:35]} 17. Nh1 {[%clk 0:01:55]}  Bd6 {[%clk 0:02:34]} 18. Rd1 {[%clk 0:01:53]}  Rdg8 {[%clk 0:02:16]} 19. d4 {[%clk 0:01:51]}  Bh2+ {[%clk 0:02:16]} 20. Kf1 {[%clk 0:01:50]}  g5 {[%clk 0:02:17]} 21. f3 {[%clk 0:01:45]}  f5 {[%clk 0:02:10]} 22. Nf2 {[%clk 0:01:43]}  g4 {[%clk 0:02:03]} 23. hxg4 {[%clk 0:01:30]}  fxg4 {[%clk 0:02:03]} 24. Ke1 {[%clk 0:01:16]}  gxf3 {[%clk 0:01:52]} 25. gxf3 {[%clk 0:01:16]}  Rg2 {[%clk 0:01:30]} 26. Be3 {[%clk 0:01:11]}  Bg3 {[%clk 0:01:23]} 27. Kd2 {[%clk 0:01:08]}  h3 {[%clk 0:01:16]} 28. Rf1 {[%clk 0:00:55]}  h2 {[%clk 0:01:15]} 29. Kd3 {[%clk 0:00:52]}  Qd6 {[%clk 0:00:49]} 30. Kc2 {[%clk 0:00:45]}  Qe7 {[%clk 0:00:42]} 31. d5 {[%clk 0:00:32]}  exd5 {[%clk 0:00:41]} 32. Bxd5 {[%clk 0:00:30]}  Qh4 {[%clk 0:00:32]} 33. Kb3 {[%clk 0:00:19]}  Bxf2 {[%clk 0:00:32]} 34. Rxf2 {[%clk 0:00:15]}  Rxf2 {[%clk 0:00:28]} 35. Bxf2 {[%clk 0:00:15]}  h1=Q {[%clk 0:00:25]} 36. Rxh1 {[%clk 0:00:10]}  Qxh1 {[%clk 0:00:25]} 37. Qd3 {[%clk 0:00:09]}  Rh2 {[%clk 0:00:21]} 0-1


[Site "https://www.chess.com"]

[Event "Titled Tuesday Blitz April 4 Early 2023"]
[White "Weishaeutel, Moritz"]
[Black "Manukyan, Artyom"]
[WhiteFideId "12967300"]
[BlackFideId "13305786"]
[WhiteElo "2301"]
[BlackElo "2078"]
[Result "0-1"]
[Round "06"]
[TimeControl "180+2"]
[Date "2023.04.04"]
[WhiteClock "0:00:08"]
[BlackClock "0:00:16"]

1. e4 {[%clk 0:03:00]}  e6 {[%clk 0:03:00]} 2. b3 {[%clk 0:02:57]}  d5 {[%clk 0:03:01]} 3. Bb2 {[%clk 0:02:58]}  c5 {[%clk 0:02:52]} 4. exd5 {[%clk 0:02:53]}  exd5 {[%clk 0:02:49]} 5. d4 {[%clk 0:02:53]}  Nf6 {[%clk 0:02:50]} 6. Nf3 {[%clk 0:02:53]}  Nc6 {[%clk 0:02:49]} 7. Bb5 {[%clk 0:02:52]}  Qa5+ {[%clk 0:02:41]} 8. Nc3 {[%clk 0:02:52]}  cxd4 {[%clk 0:02:42]} 9. Nxd4 {[%clk 0:02:49]}  Bd7 {[%clk 0:02:40]} 10. O-O {[%clk 0:02:45]}  O-O-O {[%clk 0:02:28]} 11. Nxc6 {[%clk 0:02:28]}  bxc6 {[%clk 0:02:27]} 12. Bd3 {[%clk 0:02:29]}  Bd6 {[%clk 0:02:27]} 13. Ne2 {[%clk 0:02:27]}  h5 {[%clk 0:02:25]} 14. a3 {[%clk 0:02:19]}  Qc7 {[%clk 0:02:23]} 15. h3 {[%clk 0:02:17]}  Ng4 {[%clk 0:02:02]} 16. g3 {[%clk 0:01:21]}  h4 {[%clk 0:01:47]} 17. hxg4 {[%clk 0:01:03]}  hxg3 {[%clk 0:01:45]} 18. f3 {[%clk 0:01:03]}  Bc5+ {[%clk 0:01:36]} 19. Bd4 {[%clk 0:01:00]}  g2 {[%clk 0:01:36]} 20. f4 {[%clk 0:00:36]}  gxf1=Q+ {[%clk 0:01:30]} 21. Qxf1 {[%clk 0:00:36]}  Bxd4+ {[%clk 0:01:28]} 22. Nxd4 {[%clk 0:00:37]}  Bxg4 {[%clk 0:01:27]} 23. Bf5+ {[%clk 0:00:29]}  Bxf5 {[%clk 0:01:25]} 24. Nxf5 {[%clk 0:00:20]}  Qb6+ {[%clk 0:01:23]} 25. Kg2 {[%clk 0:00:19]}  g6 {[%clk 0:01:17]} 26. Ng3 {[%clk 0:00:16]}  Rde8 {[%clk 0:01:17]} 27. Re1 {[%clk 0:00:15]}  Kb7 {[%clk 0:01:14]} 28. Rd1 {[%clk 0:00:12]}  Qe3 {[%clk 0:01:08]} 29. Rd3 {[%clk 0:00:09]}  Qe6 {[%clk 0:01:08]} 30. Rd4 {[%clk 0:00:06]}  Qh3+ {[%clk 0:01:07]} 31. Kf3 {[%clk 0:00:05]}  Qxf1+ {[%clk 0:00:56]} 32. Nxf1 {[%clk 0:00:06]}  Rh3+ {[%clk 0:00:56]} 33. Kg2 {[%clk 0:00:07]}  Rc3 {[%clk 0:00:55]} 34. Rd2 {[%clk 0:00:07]}  Re4 {[%clk 0:00:54]} 35. Ng3 {[%clk 0:00:07]}  Re1 {[%clk 0:00:39]} 36. Kf2 {[%clk 0:00:06]}  Ra1 {[%clk 0:00:38]} 37. Ne2 {[%clk 0:00:06]}  Rh3 {[%clk 0:00:34]} 38. Kg2 {[%clk 0:00:07]}  Re3 {[%clk 0:00:32]} 39. a4 {[%clk 0:00:08]}  Ra2 {[%clk 0:00:30]} 40. Nd4 {[%clk 0:00:06]}  Re4 {[%clk 0:00:30]} 41. Kf3 {[%clk 0:00:06]}  a6 {[%clk 0:00:27]} 42. Ne2 {[%clk 0:00:05]}  Ra1 {[%clk 0:00:26]} 43. Nc3 {[%clk 0:00:05]}  Ree1 {[%clk 0:00:24]} 44. Ne2 {[%clk 0:00:05]}  f5 {[%clk 0:00:22]} 45. Nd4 {[%clk 0:00:04]}  Rf1+ {[%clk 0:00:22]} 46. Kg2 {[%clk 0:00:04]}  Rg1+ {[%clk 0:00:23]} 47. Kh2 {[%clk 0:00:04]}  Rh1+ {[%clk 0:00:23]} 48. Kg2 {[%clk 0:00:05]}  Rag1+ {[%clk 0:00:23]} 49. Kf2 {[%clk 0:00:05]}  Rh2+ {[%clk 0:00:24]} 50. Kxg1 {[%clk 0:00:04]}  Rxd2 {[%clk 0:00:24]} 51. c3 {[%clk 0:00:04]}  Rd3 {[%clk 0:00:25]} 52. Ne2 {[%clk 0:00:04]}  Rd1+ {[%clk 0:00:23]} 53. Kf2 {[%clk 0:00:04]}  Rd2 {[%clk 0:00:24]} 54. Ke3 {[%clk 0:00:05]}  Rd1 {[%clk 0:00:19]} 55. Nd4 {[%clk 0:00:05]}  Kb6 {[%clk 0:00:18]} 56. Ne6 {[%clk 0:00:05]}  a5 {[%clk 0:00:18]} 57. Nf8 {[%clk 0:00:05]}  Rg1 {[%clk 0:00:18]} 58. Kf2 {[%clk 0:00:05]}  Rg4 {[%clk 0:00:18]} 59. Kf3 {[%clk 0:00:05]}  c5 {[%clk 0:00:19]} 60. Nd7+ {[%clk 0:00:05]}  Kc7 {[%clk 0:00:17]} 61. Nxc5 {[%clk 0:00:05]}  Rg1 {[%clk 0:00:14]} 62. Ne6+ {[%clk 0:00:04]}  Kd6 {[%clk 0:00:14]} 63. Nf8 {[%clk 0:00:04]}  Ke7 {[%clk 0:00:13]} 64. Nh7 {[%clk 0:00:04]}  Rc1 {[%clk 0:00:12]} 65. Ke3 {[%clk 0:00:04]}  Rxc3+ {[%clk 0:00:12]} 66. Kd4 {[%clk 0:00:05]}  Rxb3 {[%clk 0:00:13]} 67. Kxd5 {[%clk 0:00:06]}  Rb4 {[%clk 0:00:13]} 68. Ke5 {[%clk 0:00:06]}  Re4+ {[%clk 0:00:13]} 69. Kd5 {[%clk 0:00:06]}  Rxf4 {[%clk 0:00:14]} 70. Ng5 {[%clk 0:00:06]}  Rxa4 {[%clk 0:00:15]} 71. Nf3 {[%clk 0:00:07]}  Rb4 {[%clk 0:00:14]} 72. Ne5 {[%clk 0:00:07]}  Rb5+ {[%clk 0:00:14]} 73. Kd4 {[%clk 0:00:07]}  Rxe5 {[%clk 0:00:15]} 74. Kxe5 {[%clk 0:00:08]}  a4 {[%clk 0:00:16]} 0-1


[Site "https://www.chess.com"]

[Event "Titled Tuesday Blitz April 4 Early 2023"]
[White "Klepikov, Nikita"]
[Black "Ibadov, Dashgyn"]
[WhiteFideId "24145220"]
[BlackFideId "24107514"]
[WhiteElo "2025"]
[BlackElo "2208"]
[Result "1/2-1/2"]
[Round "06"]
[TimeControl "180+2"]
[Date "2023.04.04"]
[WhiteClock "0:00:09"]
[BlackClock "0:00:03"]

1. e4 {[%clk 0:03:00]}  e5 {[%clk 0:02:59]} 2. Nf3 {[%clk 0:03:01]}  Nc6 {[%clk 0:02:59]} 3. Bb5 {[%clk 0:03:01]}  a6 {[%clk 0:02:59]} 4. Ba4 {[%clk 0:03:01]}  Nf6 {[%clk 0:02:57]} 5. Qe2 {[%clk 0:03:02]}  b5 {[%clk 0:02:54]} 6. Bb3 {[%clk 0:03:02]}  Be7 {[%clk 0:02:45]} 7. c3 {[%clk 0:03:01]}  O-O {[%clk 0:02:44]} 8. O-O {[%clk 0:03:01]}  Bb7 {[%clk 0:02:40]} 9. Rd1 {[%clk 0:03:01]}  Na5 {[%clk 0:02:38]} 10. Bc2 {[%clk 0:03:01]}  d5 {[%clk 0:02:35]} 11. d3 {[%clk 0:03:00]}  Nc6 {[%clk 0:01:52]} 12. Nbd2 {[%clk 0:02:37]}  Re8 {[%clk 0:01:51]} 13. Nf1 {[%clk 0:02:21]}  d4 {[%clk 0:01:51]} 14. Ng3 {[%clk 0:01:57]}  Bf8 {[%clk 0:01:35]} 15. a3 {[%clk 0:01:22]}  g6 {[%clk 0:01:28]} 16. c4 {[%clk 0:01:16]}  bxc4 {[%clk 0:01:24]} 17. dxc4 {[%clk 0:01:16]}  a5 {[%clk 0:01:13]} 18. Ba4 {[%clk 0:01:13]}  Nd7 {[%clk 0:01:12]} 19. h4 {[%clk 0:01:07]}  Nc5 {[%clk 0:01:12]} 20. Bc2 {[%clk 0:01:07]}  Bc8 {[%clk 0:01:04]} 21. Rb1 {[%clk 0:00:34]}  a4 {[%clk 0:00:55]} 22. Bg5 {[%clk 0:00:31]}  f6 {[%clk 0:00:55]} 23. Bc1 {[%clk 0:00:29]}  Bg4 {[%clk 0:00:54]} 24. Nf1 {[%clk 0:00:24]}  d3 {[%clk 0:00:37]} 25. Bxd3 {[%clk 0:00:12]}  Nd4 {[%clk 0:00:37]} 26. Qe3 {[%clk 0:00:11]}  Bxf3 {[%clk 0:00:27]} 27. gxf3 {[%clk 0:00:11]}  Nce6 {[%clk 0:00:23]} 28. Ng3 {[%clk 0:00:11]}  Bc5 {[%clk 0:00:21]} 29. Bf1 {[%clk 0:00:09]}  Nf4 {[%clk 0:00:13]} 30. Qc3 {[%clk 0:00:07]}  Rb8 {[%clk 0:00:07]} 31. Be3 {[%clk 0:00:06]}  Rb3 {[%clk 0:00:07]} 32. Qe1 {[%clk 0:00:06]}  Nxf3+ {[%clk 0:00:07]} 33. Kh1 {[%clk 0:00:06]}  Nxe1 {[%clk 0:00:05]} 34. Rxd8 {[%clk 0:00:05]}  Rxd8 {[%clk 0:00:06]} 35. Bxc5 {[%clk 0:00:05]}  Nf3 {[%clk 0:00:03]} 36. Be3 {[%clk 0:00:05]}  Nd4 {[%clk 0:00:02]} 37. c5 {[%clk 0:00:05]}  Rdb8 {[%clk 0:00:02]} 38. Bc4+ {[%clk 0:00:05]}  Kg7 {[%clk 0:00:01]} 39. Bxb3 {[%clk 0:00:05]}  Rxb3 {[%clk 0:00:02]} 40. Kg1 {[%clk 0:00:03]}  Nd3 {[%clk 0:00:03]} 41. Rd1 {[%clk 0:00:03]}  Nxb2 {[%clk 0:00:03]} 42. Rd2 {[%clk 0:00:03]}  Nc4 {[%clk 0:00:03]} 43. Rd1 {[%clk 0:00:03]}  Nxa3 {[%clk 0:00:03]} 44. Bxd4 {[%clk 0:00:02]}  exd4 {[%clk 0:00:03]} 45. Rxd4 {[%clk 0:00:03]}  Nb5 {[%clk 0:00:02]} 46. Rd7+ {[%clk 0:00:04]}  Kh6 {[%clk 0:00:02]} 47. h5 {[%clk 0:00:04]}  Kg5 {[%clk 0:00:02]} 48. h6 {[%clk 0:00:05]}  a3 {[%clk 0:00:02]} 49. Rxh7 {[%clk 0:00:05]}  a2 {[%clk 0:00:02]} 50. Rg7 {[%clk 0:00:05]}  a1=Q+ {[%clk 0:00:02]} 51. Kg2 {[%clk 0:00:06]}  Rb1 {[%clk 0:00:03]} 52. h7 {[%clk 0:00:06]}  Rg1+ {[%clk 0:00:02]} 53. Kh2 {[%clk 0:00:06]}  Rxg3 {[%clk 0:00:02]} 54. fxg3 {[%clk 0:00:06]}  Qb2+ {[%clk 0:00:02]} 55. Kh3 {[%clk 0:00:06]}  Qe2 {[%clk 0:00:01]} 56. h8=Q {[%clk 0:00:06]}  Qg4+ {[%clk 0:00:02]} 57. Kg2 {[%clk 0:00:06]}  Qe2+ {[%clk 0:00:02]} 58. Kh3 {[%clk 0:00:07]}  Qf1+ {[%clk 0:00:02]} 59. Kh2 {[%clk 0:00:07]}  Qf2+ {[%clk 0:00:02]} 60. Kh1 {[%clk 0:00:08]}  Qf1+ {[%clk 0:00:02]} 61. Kh2 {[%clk 0:00:08]}  Qf2+ {[%clk 0:00:03]} 62. Kh3 {[%clk 0:00:08]}  Qf1+ {[%clk 0:00:03]} 63. Kh2 {[%clk 0:00:09]} 1/2-1/2


[Site "https://www.chess.com"]

[Event "Titled Tuesday Blitz April 4 Early 2023"]
[White "Gurevich, Dmitry"]
[Black "HamedWafa4"]
[WhiteFideId "2000407"]
[WhiteElo "2506"]
[BlackElo "2373"]
[Result "1-0"]
[Round "06"]
[TimeControl "180+2"]
[Date "2023.04.04"]
[WhiteClock "0:00:02"]
[BlackClock "0:00:03"]

1. d4 {[%clk 0:03:00]}  Nf6 {[%clk 0:02:53]} 2. c4 {[%clk 0:03:00]}  e6 {[%clk 0:02:52]} 3. Nc3 {[%clk 0:03:00]}  Bb4 {[%clk 0:02:51]} 4. a3 {[%clk 0:03:00]}  Bxc3+ {[%clk 0:02:51]} 5. bxc3 {[%clk 0:03:00]}  Nc6 {[%clk 0:02:51]} 6. e3 {[%clk 0:02:58]}  b6 {[%clk 0:02:51]} 7. Bd3 {[%clk 0:02:57]}  Ba6 {[%clk 0:02:50]} 8. Nf3 {[%clk 0:02:55]}  Na5 {[%clk 0:02:49]} 9. Nd2 {[%clk 0:02:54]}  d5 {[%clk 0:02:46]} 10. Qe2 {[%clk 0:02:51]}  O-O {[%clk 0:02:44]} 11. O-O {[%clk 0:02:49]}  Rc8 {[%clk 0:02:40]} 12. cxd5 {[%clk 0:02:43]}  Bxd3 {[%clk 0:02:41]} 13. Qxd3 {[%clk 0:02:42]}  exd5 {[%clk 0:02:41]} 14. f3 {[%clk 0:02:38]}  c5 {[%clk 0:02:41]} 15. e4 {[%clk 0:02:34]}  cxd4 {[%clk 0:02:41]} 16. cxd4 {[%clk 0:02:34]}  Nc4 {[%clk 0:02:14]} 17. e5 {[%clk 0:02:28]}  Nd7 {[%clk 0:02:13]} 18. f4 {[%clk 0:02:23]}  Nxd2 {[%clk 0:02:03]} 19. Bxd2 {[%clk 0:02:22]}  Rc4 {[%clk 0:02:02]} 20. f5 {[%clk 0:02:20]}  Re8 {[%clk 0:02:02]} 21. f6 {[%clk 0:02:15]}  g6 {[%clk 0:02:02]} 22. Rf3 {[%clk 0:02:07]}  Nf8 {[%clk 0:01:06]} 23. Rh3 {[%clk 0:02:06]}  Ne6 {[%clk 0:00:58]} 24. Qe3 {[%clk 0:02:03]}  h5 {[%clk 0:00:54]} 25. Rh4 {[%clk 0:01:54]}  b5 {[%clk 0:00:43]} 26. Rf1 {[%clk 0:01:49]}  Qb6 {[%clk 0:00:41]} 27. Rff4 {[%clk 0:01:35]}  Rec8 {[%clk 0:00:21]} 28. h3 {[%clk 0:01:31]}  Kf8 {[%clk 0:00:17]} 29. Kh2 {[%clk 0:01:26]}  Ke8 {[%clk 0:00:17]} 30. Qg3 {[%clk 0:01:06]}  g5 {[%clk 0:00:16]} 31. Rxh5 {[%clk 0:01:03]}  gxf4 {[%clk 0:00:17]} 32. Qg8+ {[%clk 0:01:01]}  Nf8 {[%clk 0:00:14]} 33. Qxf8+ {[%clk 0:01:01]}  Kd7 {[%clk 0:00:12]} 34. Qxf7+ {[%clk 0:01:00]}  Kc6 {[%clk 0:00:12]} 35. Qe6+ {[%clk 0:00:59]}  Kb7 {[%clk 0:00:11]} 36. Qxd5+ {[%clk 0:00:58]}  Ka6 {[%clk 0:00:12]} 37. f7 {[%clk 0:00:56]}  Rxd4 {[%clk 0:00:11]} 38. Qf3 {[%clk 0:00:31]}  Rxd2 {[%clk 0:00:11]} 39. Qxf4 {[%clk 0:00:31]}  Rcc2 {[%clk 0:00:09]} 40. Rg5 {[%clk 0:00:28]}  Rf2 {[%clk 0:00:07]} 41. Qe4 {[%clk 0:00:27]}  Qd8 {[%clk 0:00:05]} 42. Rg4 {[%clk 0:00:21]}  Qe7 {[%clk 0:00:05]} 43. e6 {[%clk 0:00:20]}  Qd6+ {[%clk 0:00:04]} 44. Rg3 {[%clk 0:00:16]}  Rf1 {[%clk 0:00:03]} 45. e7 {[%clk 0:00:11]}  Rcc1 {[%clk 0:00:03]} 46. Qe1 {[%clk 0:00:02]} 1-0


[Site "https://www.chess.com"]

[Event "Titled Tuesday Blitz April 4 Early 2023"]
[White "De La Colina, Nicolas"]
[Black "Goncalves, Davi Sulzbacher"]
[WhiteFideId "30946921"]
[BlackFideId "2154510"]
[WhiteElo "2046"]
[BlackElo "2182"]
[Result "1-0"]
[Round "06"]
[TimeControl "180+2"]
[Date "2023.04.04"]
[WhiteClock "0:01:56"]
[BlackClock "0:00:33"]

1. c4 {[%clk 0:02:55]}  e5 {[%clk 0:02:57]} 2. Nc3 {[%clk 0:02:54]}  Nc6 {[%clk 0:02:58]} 3. Nf3 {[%clk 0:02:55]}  g6 {[%clk 0:02:58]} 4. g3 {[%clk 0:02:46]}  Bg7 {[%clk 0:02:59]} 5. Bg2 {[%clk 0:02:47]}  Nge7 {[%clk 0:02:59]} 6. O-O {[%clk 0:02:46]}  O-O {[%clk 0:03:00]} 7. d3 {[%clk 0:02:47]}  d6 {[%clk 0:03:00]} 8. Rb1 {[%clk 0:02:46]}  a5 {[%clk 0:02:58]} 9. a3 {[%clk 0:02:46]}  Be6 {[%clk 0:02:57]} 10. b4 {[%clk 0:02:45]}  axb4 {[%clk 0:02:56]} 11. axb4 {[%clk 0:02:46]}  Qd7 {[%clk 0:02:56]} 12. Ng5 {[%clk 0:02:44]}  Bf5 {[%clk 0:02:51]} 13. b5 {[%clk 0:02:45]}  Nd8 {[%clk 0:02:50]} 14. Bb2 {[%clk 0:02:41]}  h6 {[%clk 0:02:45]} 15. Nf3 {[%clk 0:02:40]}  Bh3 {[%clk 0:02:45]} 16. Qb3 {[%clk 0:02:29]}  Bxg2 {[%clk 0:02:42]} 17. Kxg2 {[%clk 0:02:30]}  Ne6 {[%clk 0:02:40]} 18. Ra1 {[%clk 0:02:24]}  Nd4 {[%clk 0:02:17]} 19. Nxd4 {[%clk 0:02:17]}  exd4 {[%clk 0:02:18]} 20. Ne4 {[%clk 0:02:17]}  d5 {[%clk 0:01:55]} 21. cxd5 {[%clk 0:02:11]}  Qxd5 {[%clk 0:01:48]} 22. Qb4 {[%clk 0:01:58]}  Rxa1 {[%clk 0:00:33]} 23. Rxa1 {[%clk 0:01:59]}  f5 {[%clk 0:00:33]} 24. Qxe7 {[%clk 0:01:56]}  Bf6 {[%clk 0:00:33]} 1-0


[Site "https://www.chess.com"]